[Event "European Women Rapid-ch 2023"]
[Site "Monaco"]
[Date "2024.01.13"]
[Round "5.2"]
[White "Kosteniuk, Alexandra"]
[Black "Vega Gutierrez, Sabrina"]
[Result "1-0"]
[ECO "B21"]
[WhiteElo "2501"]
[BlackElo "2378"]
[Annotator "RC"]
[PlyCount "65"]
[EventDate "2023.12.19"]
[EventType "swiss"]
[EventCountry "MNC"]
[SourceTitle "playchess.com"]
[Source "ChessBase"]
[SourceQuality "1"]
[TimeControl "900+10"]

1. e4 {[%emt 0:00:02]} c5 {[%emt 0:00:01]} 2. d4 {[%emt 0:00:01]} cxd4 {[%emt 0:00:03]} 3. Qxd4 {[%emt 0:00:02]} Nc6 {[%emt 0:00:10]} 4. Qd3 {[%emt 0:00:01]} Nf6 {[%emt 0:00:50]} 5. Nc3 {[%emt 0:00:02]} e6 {[%emt 0:00:48]} 6. Bf4 {[%emt 0:00:07]} d5 {[%emt 0:01:33]} 7. exd5 {[%emt 0:00:30]} Nb4 {[%emt 0:00:09]} 8. Qd2 {[%emt 0:03:50]} Nbxd5 {[%emt 0:00:08]} 9. Nxd5 {[%emt 0:00:50]} Nxd5 {[%emt 0:01:36]} 10. Be5 {[%emt 0:00:48]} f6 {[%emt 0:00:50]} 11. Bg3 {[%emt 0:00:02]} Be7 {[%emt 0:01:30]} 12. O-O-O {[%emt 0:00:10]} O-O {[%emt 0:00:11]} 13. Bc4 {[%emt 0:00:04]} Qb6 {[%emt 0:03:13]} 14. Ne2 {[%emt 0:01:32]} Rd8 {[%emt 0:00:39]} 15. Nf4 {[%emt 0:00:04]} Nxf4 {[%emt 0:01:43]} 16. Qxf4 {[%emt 0:00:02]} Kh8 {[%emt 0:00:22]} 17. Qh4 {[%emt 0:00:58]} Bd7 {[%emt 0:01:16]} 18. Bd3 {[%emt 0:00:18]} h6 {[%emt 0:00:04]} 19. Bf4 {[%emt 0:00:25]} Qb4 {[%emt 0:01:28]} 20. a3 {[%emt 0:00:28]} f5 {[%emt 0:00:04]} 21. Qxh6+ {[%emt 0:00:26]} gxh6 {[%emt 0:00:03]} 22. axb4 {[%emt 0:00:02]} Bg5 {[%emt 0:00:38]} 23. Bd2 {[%emt 0:00:13]} Bxd2+ {[%emt 0:00:09]} 24. Rxd2 {[%emt 0:00:05]} Kg7 {[%emt 0:00:31]} 25. Re1 {[%emt 0:00:03]} Kf6 {[%emt 0:00:02]} 26. Bc4 {[%emt 0:00:17]} Rac8 {[%emt 0:00:48]} 27. Bb3 {[%emt 0:00:14]} Ke7 {[%emt 0:00:38]} 28. Rxd7+ {[%emt 0:00:43]} Rxd7 {[%emt 0:00:07]} 29. Bxe6 {[%emt 0:00:02]} Kd8 {[%emt 0:00:15]} 30. Bxd7 {[%emt 0:00:03]} Kxd7 {[%emt 0:00:01]} 31. Re5 {[%emt 0:00:09]} Rg8 {[%emt 0:00:02]} 32. g3 {[%emt 0:00:06]} f4 {[%emt 0:00:01]} 33. Kd2 {[%emt 0:00:07]} 1-0

[Event "European Women Rapid-ch 2023"]
[Site "Monaco"]
[Date "2024.01.13"]
[Round "5.3"]
[White "Paehtz, Elisabeth"]
[Black "Guichard, Pauline"]
[Result "1/2-1/2"]
[ECO "D02"]
[WhiteElo "2461"]
[BlackElo "2385"]
[Annotator "RC"]
[PlyCount "123"]
[EventDate "2023.12.19"]
[EventType "swiss"]
[EventCountry "MNC"]
[SourceTitle "playchess.com"]
[Source "ChessBase"]
[SourceQuality "1"]
[TimeControl "900+10"]

1. d4 {[%emt 0:00:01]} Nf6 {[%emt 0:00:01]} 2. Nf3 {[%emt 0:00:02]} d5 {[%emt 0:00:04]} 3. c3 {[%emt 0:00:01]} c5 {[%emt 0:00:06]} 4. dxc5 {[%emt 0:00:01]} e6 {[%emt 0:00:33]} 5. Be3 {[%emt 0:00:13]} a5 {[%emt 0:01:23]} 6. c4 {[%emt 0:00:32]} Nbd7 {[%emt 0:01:46]} 7. cxd5 {[%emt 0:00:08]} Nxd5 {[%emt 0:00:16]} 8. Bd4 {[%emt 0:00:02]} Nxc5 {[%emt 0:01:42]} 9. e3 {[%emt 0:00:37]} Bd7 {[%emt 0:00:33]} 10. Ne5 {[%emt 0:00:42]} Ne4 {[%emt 0:00:09]} 11. Qf3 {[%emt 0:01:11]} Bb4+ {[%emt 0:02:01]} 12. Nc3 {[%emt 0:00:01]} Nef6 {[%emt 0:01:31]} 13. Bd3 {[%emt 0:01:00]} Rc8 {[%emt 0:00:37]} 14. Rc1 {[%emt 0:00:02]} O-O {[%emt 0:01:08]} 15. O-O {[%emt 0:00:06]} Bc6 {[%emt 0:01:15]} 16. Qh3 {[%emt 0:00:36]} h6 {[%emt 0:00:28]} 17. Rfd1 {[%emt 0:03:25]} Qe7 {[%emt 0:00:02]} 18. Nxc6 {[%emt 0:00:42]} Rxc6 {[%emt 0:00:13]} 19. Nxd5 {[%emt 0:00:23]} Nxd5 {[%emt 0:00:02]} 20. Qg3 {[%emt 0:01:31]} Nf6 {[%emt 0:00:30]} 21. Rxc6 {[%emt 0:00:51]} bxc6 {[%emt 0:00:02]} 22. Qf3 {[%emt 0:00:15]} e5 {[%emt 0:00:53]} 23. a3 {[%emt 0:00:01]} exd4 {[%emt 0:01:40]} 24. axb4 {[%emt 0:00:01]} axb4 {[%emt 0:00:34]} 25. exd4 {[%emt 0:00:03]} Nd5 {[%emt 0:00:02]} 26. Qe4 {[%emt 0:01:19]} Qxe4 {[%emt 0:00:02]} 27. Bxe4 {[%emt 0:00:01]} Re8 {[%emt 0:00:34]} 28. f3 {[%emt 0:00:01]} Kf8 {[%emt 0:00:09]} 29. Rc1 {[%emt 0:00:06]} Re6 {[%emt 0:00:01]} 30. Kf2 {[%emt 0:00:20]} Ke7 {[%emt 0:00:26]} 31. Bxd5 {[%emt 0:00:37]} cxd5 {[%emt 0:00:01]} 32. Rc7+ {[%emt 0:00:04]} Kf6 {[%emt 0:00:07]} 33. Rb7 {[%emt 0:00:12]} Rc6 {[%emt 0:00:06]} 34. Rxb4 {[%emt 0:00:04]} Rc2+ {[%emt 0:00:01]} 35. Kg3 {[%emt 0:00:04]} h5 {[%emt 0:00:18]} 36. h4 {[%emt 0:00:33]} g6 {[%emt 0:00:12]} 37. Rb6+ {[%emt 0:01:31]} Ke7 {[%emt 0:00:24]} 38. b4 {[%emt 0:01:03]} Rd2 {[%emt 0:00:32]} 39. Kf4 {[%emt 0:00:11]} Rxd4+ {[%emt 0:00:02]} 40. Ke5 {[%emt 0:00:05]} Rxh4 {[%emt 0:00:06]} 41. Rb7+ {[%emt 0:00:01]} Kf8 {[%emt 0:00:06]} 42. b5 {[%emt 0:00:55]} Rh2 {[%emt 0:00:59]} 43. Kf6 {[%emt 0:00:09]} Ke8 {[%emt 0:00:00]} 44. Re7+ {[%emt 0:01:16]} Kd8 {[%emt 0:00:02]} 45. Re2 {[%emt 0:00:08]} h4 {[%emt 0:00:13]} 46. Kxf7 {[%emt 0:00:43]} d4 {[%emt 0:00:42]} 47. Rd2 {[%emt 0:00:17]} Kc7 {[%emt 0:00:01]} 48. Rxd4 {[%emt 0:00:15]} Rxg2 {[%emt 0:00:20]} 49. Rxh4 {[%emt 0:00:06]} Rg3 {[%emt 0:00:11]} 50. Rf4 {[%emt 0:00:31]} Kb6 {[%emt 0:00:06]} 51. Rf6+ {[%emt 0:00:09]} Kxb5 {[%emt 0:00:01]} 52. f4 {[%emt 0:00:01]} Rg4 {[%emt 0:00:06]} 53. Ke6 {[%emt 0:00:13]} Kc5 {[%emt 0:00:05]} 54. Ke5 {[%emt 0:00:02]} Rg1 {[%emt 0:00:20]} 55. Rf8 {[%emt 0:00:05]} Kc4 {[%emt 0:00:20]} 56. Rc8+ {[%emt 0:00:16]} Kd3 {[%emt 0:00:02]} 57. Rd8+ {[%emt 0:00:09]} Ke3 {[%emt 0:00:01]} 58. Ra8 {[%emt 0:00:02]} Kf3 {[%emt 0:00:11]} 59. Ra3+ {[%emt 0:00:11]} Kg4 {[%emt 0:00:05]} 60. Ra4 {[%emt 0:00:03]} Rf1 {[%emt 0:00:23]} 61. f5+ {[%emt 0:00:23]} Kg5 {[%emt 0:00:01]} 62. fxg6 {[%emt 0:00:02]} 1/2-1/2

[Event "European Women Rapid-ch 2023"]
[Site "Monaco"]
[Date "2024.01.13"]
[Round "5.4"]
[White "Osmak, Yuliia"]
[Black "Javakhishvili, Lela"]
[Result "1-0"]
[ECO "B30"]
[WhiteElo "2450"]
[BlackElo "2433"]
[Annotator "RC"]
[PlyCount "67"]
[EventDate "2023.12.19"]
[EventType "swiss"]
[EventCountry "MNC"]
[SourceTitle "playchess.com"]
[Source "ChessBase"]
[SourceQuality "1"]
[TimeControl "900+10"]

1. e4 {[%emt 0:00:01]} c5 {[%emt 0:00:02]} 2. Nf3 {[%emt 0:00:02]} Nc6 {[%emt 0:00:04]} 3. Bb5 {[%emt 0:00:01]} e6 {[%emt 0:00:06]} 4. O-O {[%emt 0:00:03]} Nge7 {[%emt 0:00:03]} 5. d4 {[%emt 0:00:07]} cxd4 {[%emt 0:00:06]} 6. Nxd4 {[%emt 0:00:01]} Ng6 {[%emt 0:00:29]} 7. c3 {[%emt 0:00:11]} Be7 {[%emt 0:00:22]} 8. Be3 {[%emt 0:00:16]} O-O {[%emt 0:00:09]} 9. Nd2 {[%emt 0:00:09]} Nxd4 {[%emt 0:01:43]} 10. cxd4 {[%emt 0:00:06]} d5 {[%emt 0:00:03]} 11. e5 {[%emt 0:00:07]} f6 {[%emt 0:00:06]} 12. exf6 {[%emt 0:00:21]} Bxf6 {[%emt 0:00:05]} 13. Bd3 {[%emt 0:00:39]} e5 {[%emt 0:00:52]} 14. Bxg6 {[%emt 0:01:33]} exd4 {[%emt 0:01:28]} 15. Bxh7+ {[%emt 0:00:42]} Kxh7 {[%emt 0:00:03]} 16. Bf4 {[%emt 0:00:16]} Kg8 {[%emt 0:01:17]} 17. Nb3 {[%emt 0:01:34]} Qb6 {[%emt 0:00:17]} 18. Qh5 {[%emt 0:01:47]} Be6 {[%emt 0:00:32]} 19. Be5 {[%emt 0:00:50]} Bg4 {[%emt 0:02:09]} 20. Qxg4 {[%emt 0:00:05]} Bxe5 {[%emt 0:00:01]} 21. Rad1 {[%emt 0:01:03]} Rf4 {[%emt 0:00:55]} 22. Qh5 {[%emt 0:00:32]} Qf6 {[%emt 0:00:16]} 23. g3 {[%emt 0:01:17]} Rf5 {[%emt 0:00:09]} 24. Qg4 {[%emt 0:00:05]} Rf8 {[%emt 0:01:17]} 25. Rd2 {[%emt 0:00:53]} Qh6 {[%emt 0:01:27]} 26. Nxd4 {[%emt 0:01:25]} Qxd2 {[%emt 0:00:51]} 27. Nxf5 {[%emt 0:00:01]} Bf6 {[%emt 0:01:04]} 28. Rd1 {[%emt 0:01:58]} Qxb2 {[%emt 0:00:22]} 29. Rxd5 {[%emt 0:00:10]} Qc1+ {[%emt 0:01:59]} 30. Rd1 {[%emt 0:00:41]} Qc2 {[%emt 0:00:35]} 31. Rd7 {[%emt 0:00:12]} Qc1+ {[%emt 0:00:05]} 32. Kg2 {[%emt 0:00:13]} Qc6+ {[%emt 0:00:05]} 33. Kh3 {[%emt 0:00:10]} Bg5 {[%emt 0:01:04]} 34. Rxg7+ {[%emt 0:00:06]} 1-0

[Event "European Women Rapid-ch 2023"]
[Site "Monaco"]
[Date "2024.01.13"]
[Round "5.5"]
[White "Ushenina, Anna"]
[Black "Stefanova, Antoaneta"]
[Result "1/2-1/2"]
[ECO "D73"]
[WhiteElo "2415"]
[BlackElo "2431"]
[Annotator "ChessBase"]
[PlyCount "135"]
[EventDate "2023.12.19"]
[EventType "swiss"]
[EventCountry "MNC"]
[SourceTitle "playchess.com"]
[Source "ChessBase"]
[SourceQuality "1"]
[TimeControl "900+10"]

1. Nf3 {[%emt 0:00:02]} d5 {[%emt 0:00:05]} 2. g3 {[%emt 0:00:05]} g6 {[%emt 0:00:07]} 3. Bg2 {[%emt 0:00:51]} Bg7 {[%emt 0:00:03]} 4. d4 {[%emt 0:00:02]} c6 {[%emt 0:00:09]} 5. O-O {[%emt 0:01:37]} Nf6 {[%emt 0:00:02]} 6. c4 {[%emt 0:00:12]} dxc4 {[%emt 0:00:16]} 7. a4 {[%emt 0:01:23]} h6 {[%emt 0:02:04]} 8. Nc3 {[%emt 0:00:13]} Na6 {[%emt 0:00:23]} 9. e4 {[%emt 0:00:18]} Nb4 {[%emt 0:00:17]} 10. Qe2 {[%emt 0:01:02]} Be6 {[%emt 0:00:19]} 11. h3 {[%emt 0:00:37]} O-O {[%emt 0:00:16]} 12. Be3 {[%emt 0:00:04]} Qc8 {[%emt 0:02:10]} 13. Kh2 {[%emt 0:00:12]} Ne8 {[%emt 0:00:35]} 14. Rad1 {[%emt 0:04:22]} a6 {[%emt 0:01:05]} 15. Ne5 {[%emt 0:00:27]} b5 {[%emt 0:00:22]} 16. f4 {[%emt 0:00:09]} Nd3 {[%emt 0:00:45]} 17. Nxc6 {[%emt 0:00:34]} Qxc6 {[%emt 0:00:13]} 18. d5 {[%emt 0:00:01]} Qc8 {[%emt 0:01:23]} 19. dxe6 {[%emt 0:00:05]} Qxe6 {[%emt 0:00:03]} 20. e5 {[%emt 0:00:36]} Rb8 {[%emt 0:00:25]} 21. axb5 {[%emt 0:00:17]} axb5 {[%emt 0:00:01]} 22. Bd5 {[%emt 0:00:41]} Qd7 {[%emt 0:01:20]} 23. b3 {[%emt 0:00:27]} Qc7 {[%emt 0:00:52]} 24. Nxb5 {[%emt 0:00:48]} Rxb5 {[%emt 0:00:02]} 25. Bxc4 {[%emt 0:00:01]} Nxf4 {[%emt 0:00:08]} 26. Bxf4 {[%emt 0:00:18]} Rxe5 {[%emt 0:01:38]} 27. Bxe5 {[%emt 0:01:09]} Bxe5 {[%emt 0:00:02]} 28. Rd3 {[%emt 0:01:19]} Bf6 {[%emt 0:02:04]} 29. Qd2 {[%emt 0:00:23]} Kg7 {[%emt 0:00:30]} 30. Rd8 {[%emt 0:00:21]} Qe5 {[%emt 0:01:14]} 31. Re1 {[%emt 0:00:29]} Qc5 {[%emt 0:00:02]} 32. Re2 {[%emt 0:00:21]} h5 {[%emt 0:01:07]} 33. Qd5 {[%emt 0:00:06]} Qxd5 {[%emt 0:00:11]} 34. Rxd5 {[%emt 0:00:08]} Nd6 {[%emt 0:00:02]} 35. Ra5 {[%emt 0:00:20]} Rb8 {[%emt 0:00:06]} 36. Rea2 {[%emt 0:00:10]} Bd4 {[%emt 0:00:19]} 37. Kg2 {[%emt 0:00:19]} Nf5 {[%emt 0:00:07]} 38. Kf3 {[%emt 0:00:09]} Rb7 {[%emt 0:00:15]} 39. Bd5 {[%emt 0:00:31]} Rc7 {[%emt 0:00:02]} 40. Bc4 {[%emt 0:00:06]} e5 {[%emt 0:00:02]} 41. Ra6 {[%emt 0:00:27]} Ne3 {[%emt 0:00:06]} 42. R2a4 {[%emt 0:00:03]} Re7 {[%emt 0:00:19]} 43. Rc6 {[%emt 0:00:18]} e4+ {[%emt 0:00:05]} 44. Ke2 {[%emt 0:00:03]} Nf5 {[%emt 0:00:06]} 45. g4 {[%emt 0:00:01]} hxg4 {[%emt 0:00:05]} 46. hxg4 {[%emt 0:00:01]} Ng3+ {[%emt 0:00:03]} 47. Kd1 {[%emt 0:00:04]} e3 {[%emt 0:00:07]} 48. Rd6 {[%emt 0:00:12]} e2+ {[%emt 0:00:47]} 49. Bxe2 {[%emt 0:00:02]} Nxe2 {[%emt 0:00:02]} 50. Raxd4 {[%emt 0:00:10]} Nxd4 {[%emt 0:00:01]} 51. Rxd4 {[%emt 0:00:01]} Kf6 {[%emt 0:00:09]} 52. b4 {[%emt 0:00:07]} Kg5 {[%emt 0:00:08]} 53. b5 {[%emt 0:00:05]} Rb7 {[%emt 0:00:03]} 54. Rb4 {[%emt 0:00:01]} Rb6 {[%emt 0:00:01]} 55. Kc2 {[%emt 0:00:17]} f5 {[%emt 0:00:02]} 56. gxf5 {[%emt 0:00:01]} gxf5 {[%emt 0:00:00]} 57. Kb3 {[%emt 0:00:01]} f4 {[%emt 0:00:07]} 58. Ka4 {[%emt 0:00:05]} f3 {[%emt 0:00:09]} 59. Ka5 {[%emt 0:00:02]} Rf6 {[%emt 0:00:15]} 60. Rb1 {[%emt 0:00:18]} f2 {[%emt 0:00:10]} 61. Rf1 {[%emt 0:00:14]} Kg4 {[%emt 0:00:05]} 62. b6 {[%emt 0:00:04]} Kg3 {[%emt 0:00:30]} 63. b7 {[%emt 0:00:06]} Rf8 {[%emt 0:00:01]} 64. Kb6 {[%emt 0:00:02]} Kg2 {[%emt 0:00:03]} 65. Rxf2+ {[%emt 0:00:04]} Kxf2 {[%emt 0:00:02]} 66. Ka7 {[%emt 0:00:00]} Ke3 {[%emt 0:00:04]} 67. b8=Q {[%emt 0:00:03]} Rxb8 68. Kxb8 {[%emt 0:00:01]} 1/2-1/2

[Event "European Women Rapid-ch 2023"]
[Site "Monaco"]
[Date "2024.01.13"]
[Round "5.6"]
[White "Khotenashvili, Bella"]
[Black "Lazarne Vajda, Szidonia"]
[Result "1-0"]
[ECO "A49"]
[WhiteElo "2467"]
[BlackElo "2283"]
[Annotator "RC"]
[PlyCount "87"]
[EventDate "2023.12.19"]
[EventType "swiss"]
[EventCountry "MNC"]
[SourceTitle "playchess.com"]
[Source "ChessBase"]
[SourceQuality "1"]
[TimeControl "900+10"]

1. Nf3 {[%emt 0:00:01]} Nf6 {[%emt 0:00:02]} 2. g3 {[%emt 0:00:02]} g6 {[%emt 0:00:01]} 3. Bg2 {[%emt 0:00:02]} Bg7 {[%emt 0:00:01]} 4. O-O {[%emt 0:00:03]} O-O {[%emt 0:00:02]} 5. d4 {[%emt 0:00:01]} d6 {[%emt 0:00:03]} 6. a4 {[%emt 0:00:02]} c6 {[%emt 0:00:05]} 7. a5 {[%emt 0:00:03]} Bf5 {[%emt 0:00:12]} 8. Re1 {[%emt 0:00:49]} Qc8 {[%emt 0:00:17]} 9. Nbd2 {[%emt 0:00:12]} d5 {[%emt 0:00:48]} 10. c3 {[%emt 0:00:16]} Na6 {[%emt 0:00:30]} 11. Qb3 {[%emt 0:01:15]} Ne4 {[%emt 0:00:16]} 12. Ne5 {[%emt 0:01:44]} Nxd2 {[%emt 0:02:53]} 13. Bxd2 {[%emt 0:00:02]} Nc7 {[%emt 0:00:05]} 14. c4 {[%emt 0:01:47]} dxc4 {[%emt 0:00:26]} 15. Qxc4 {[%emt 0:00:02]} Be6 {[%emt 0:00:04]} 16. Qc5 {[%emt 0:00:48]} Qd8 {[%emt 0:00:58]} 17. Red1 {[%emt 0:03:47]} Bb3 {[%emt 0:00:54]} 18. Qb4 {[%emt 0:03:48]} Bxd1 {[%emt 0:01:03]} 19. Rxd1 {[%emt 0:00:01]} Rb8 {[%emt 0:00:39]} 20. e3 {[%emt 0:00:29]} a6 {[%emt 0:00:06]} 21. Nd3 {[%emt 0:00:52]} Nb5 {[%emt 0:00:15]} 22. Qc4 {[%emt 0:00:38]} Re8 {[%emt 0:00:41]} 23. Bf3 {[%emt 0:00:27]} e6 {[%emt 0:00:17]} 24. h4 {[%emt 0:00:06]} h5 {[%emt 0:00:01]} 25. Bb4 {[%emt 0:00:20]} Nd6 {[%emt 0:00:19]} 26. Qc3 {[%emt 0:00:17]} Nf5 {[%emt 0:00:12]} 27. Bc5 {[%emt 0:00:02]} Bf8 {[%emt 0:00:11]} 28. Bb6 {[%emt 0:00:14]} Qf6 {[%emt 0:00:12]} 29. Kg2 {[%emt 0:00:06]} Bd6 {[%emt 0:00:11]} 30. e4 {[%emt 0:00:09]} Nxh4+ {[%emt 0:00:18]} 31. gxh4 {[%emt 0:00:01]} Qxh4 {[%emt 0:00:01]} 32. e5 {[%emt 0:00:19]} Qg5+ {[%emt 0:00:33]} 33. Kf1 {[%emt 0:00:02]} Bf8 {[%emt 0:00:01]} 34. Ke2 {[%emt 0:00:01]} Bh6 {[%emt 0:00:13]} 35. Nc5 {[%emt 0:00:04]} Re7 {[%emt 0:01:13]} 36. Ne4 {[%emt 0:00:08]} Qf4 {[%emt 0:00:16]} 37. Bc5 {[%emt 0:00:17]} Ree8 {[%emt 0:00:28]} 38. Nf6+ {[%emt 0:00:05]} Kg7 {[%emt 0:00:01]} 39. Rg1 {[%emt 0:00:28]} Bg5 {[%emt 0:00:21]} 40. Nxe8+ {[%emt 0:00:06]} Rxe8 {[%emt 0:00:01]} 41. Qd3 {[%emt 0:00:54]} Rd8 {[%emt 0:00:17]} 42. Qe3 {[%emt 0:00:15]} Qxe3+ {[%emt 0:00:22]} 43. fxe3 {[%emt 0:00:01]} Kh6 {[%emt 0:00:22]} 44. Rxg5 {[%emt 0:00:07]} 1-0

[Event "European Women Rapid-ch 2023"]
[Site "Monaco"]
[Date "2024.01.13"]
[Round "5.7"]
[White "Navrotescu, Andreea"]
[Black "Salimova, Nurgyul"]
[Result "1/2-1/2"]
[ECO "D35"]
[WhiteElo "2222"]
[BlackElo "2426"]
[Annotator "ChessBase"]
[PlyCount "74"]
[EventDate "2023.12.19"]
[EventType "swiss"]
[EventCountry "MNC"]
[SourceTitle "playchess.com"]
[Source "ChessBase"]
[SourceQuality "1"]
[TimeControl "900+10"]

1. d4 {[%emt 0:00:02]} Nf6 {[%emt 0:00:08]} 2. c4 {[%emt 0:00:02]} e6 {[%emt 0:00:01]} 3. Nc3 {[%emt 0:00:02]} d5 {[%emt 0:00:06]} 4. cxd5 {[%emt 0:00:09]} exd5 {[%emt 0:00:02]} 5. Bg5 {[%emt 0:00:02]} Be7 {[%emt 0:00:11]} 6. e3 {[%emt 0:00:02]} Bg4 {[%emt 0:00:29]} 7. Qb3 {[%emt 0:00:21]} Nbd7 {[%emt 0:00:59]} 8. Bd3 {[%emt 0:00:40]} O-O {[%emt 0:01:32]} 9. Nge2 {[%emt 0:02:52]} c5 {[%emt 0:00:49]} 10. Qc2 {[%emt 0:00:34]} c4 {[%emt 0:05:54]} 11. Bf5 {[%emt 0:00:02]} Bxf5 {[%emt 0:00:02]} 12. Qxf5 {[%emt 0:00:07]} b5 {[%emt 0:00:30]} 13. Nxb5 {[%emt 0:02:32]} Rb8 {[%emt 0:00:57]} 14. Nbc3 {[%emt 0:00:05]} Rxb2 {[%emt 0:00:36]} 15. O-O {[%emt 0:00:14]} h6 {[%emt 0:00:35]} 16. Bxf6 {[%emt 0:02:16]} Nxf6 {[%emt 0:00:15]} 17. Rab1 {[%emt 0:00:10]} g6 {[%emt 0:00:58]} 18. Qf3 {[%emt 0:00:16]} Rc2 {[%emt 0:02:04]} 19. Rfc1 {[%emt 0:01:51]} Rxc1+ {[%emt 0:00:02]} 20. Nxc1 {[%emt 0:00:02]} Qa5 {[%emt 0:00:23]} 21. N1e2 {[%emt 0:00:03]} Kg7 {[%emt 0:00:43]} 22. Rb5 {[%emt 0:01:03]} Qa3 {[%emt 0:00:20]} 23. h3 {[%emt 0:01:27]} Bb4 {[%emt 0:01:04]} 24. Nxd5 {[%emt 0:00:04]} Nxd5 {[%emt 0:00:03]} 25. Qxd5 {[%emt 0:00:07]} Qxa2 {[%emt 0:00:13]} 26. Nf4 {[%emt 0:00:53]} Be7 {[%emt 0:00:18]} 27. Rb7 {[%emt 0:00:10]} Qa1+ {[%emt 0:00:13]} 28. Kh2 {[%emt 0:00:01]} Qa3 {[%emt 0:00:09]} 29. Qe5+ {[%emt 0:00:08]} Bf6 {[%emt 0:00:01]} 30. Ne6+ {[%emt 0:00:03]} Kg8 {[%emt 0:00:02]} 31. Qxf6 {[%emt 0:00:01]} Qd6+ {[%emt 0:00:01]} 32. g3 {[%emt 0:01:22]} Qxe6 {[%emt 0:00:02]} 33. Qxe6 {[%emt 0:00:42]} fxe6 {[%emt 0:00:01]} 34. Kg2 {[%emt 0:00:01]} Rf7 {[%emt 0:00:55]} 35. Rb8+ {[%emt 0:00:11]} Rf8 {[%emt 0:00:03]} 36. Rb7 {[%emt 0:01:14]} Rf7 {[%emt 0:00:02]} 37. Rb8+ {[%emt 0:00:11]} Rf8 {[%emt 0:00:01]} 1/2-1/2

[Event "European Women Rapid-ch 2023"]
[Site "Monaco"]
[Date "2024.01.13"]
[Round "5.8"]
[White "Hunt, Harriet V"]
[Black "Haussernot, Cecile"]
[Result "1-0"]
[ECO "B50"]
[WhiteElo "2306"]
[BlackElo "2136"]
[Annotator "RC"]
[PlyCount "87"]
[EventDate "2023.12.19"]
[EventType "swiss"]
[EventCountry "MNC"]
[SourceTitle "playchess.com"]
[Source "ChessBase"]
[SourceQuality "1"]
[TimeControl "900+10"]

1. e4 {[%emt 0:00:02]} c5 {[%emt 0:00:03]} 2. Nf3 {[%emt 0:00:03]} d6 {[%emt 0:00:03]} 3. c3 {[%emt 0:00:07]} Nf6 {[%emt 0:00:09]} 4. h3 {[%emt 0:00:06]} Nc6 {[%emt 0:01:01]} 5. Bd3 {[%emt 0:00:08]} g6 {[%emt 0:00:06]} 6. O-O {[%emt 0:00:04]} Bg7 {[%emt 0:00:06]} 7. Bc2 {[%emt 0:00:03]} O-O {[%emt 0:02:02]} 8. Re1 {[%emt 0:00:11]} e5 {[%emt 0:02:13]} 9. d3 {[%emt 0:00:08]} h6 {[%emt 0:00:34]} 10. Be3 {[%emt 0:00:29]} Qe7 {[%emt 0:01:12]} 11. a3 {[%emt 0:01:30]} g5 {[%emt 0:02:37]} 12. Nh2 {[%emt 0:00:39]} d5 {[%emt 0:00:13]} 13. Qf3 {[%emt 0:02:09]} Be6 {[%emt 0:01:08]} 14. a4 {[%emt 0:01:36]} b6 {[%emt 0:02:15]} 15. Na3 {[%emt 0:00:08]} Rac8 {[%emt 0:00:35]} 16. Rad1 {[%emt 0:00:37]} d4 {[%emt 0:00:27]} 17. Bc1 {[%emt 0:00:11]} dxc3 {[%emt 0:00:12]} 18. bxc3 {[%emt 0:00:06]} Na5 {[%emt 0:00:43]} 19. Qe2 {[%emt 0:05:19]} Qb7 {[%emt 0:01:59]} 20. Nf1 {[%emt 0:00:11]} a6 {[%emt 0:00:15]} 21. Ne3 {[%emt 0:00:12]} b5 {[%emt 0:00:02]} 22. axb5 {[%emt 0:00:13]} axb5 {[%emt 0:00:01]} 23. Nf5 {[%emt 0:00:33]} Bxf5 {[%emt 0:00:11]} 24. exf5 {[%emt 0:00:01]} Nd5 {[%emt 0:00:13]} 25. Bd2 {[%emt 0:00:53]} b4 {[%emt 0:00:03]} 26. cxb4 {[%emt 0:00:41]} cxb4 {[%emt 0:00:04]} 27. Nc4 {[%emt 0:00:05]} Nxc4 {[%emt 0:00:40]} 28. dxc4 {[%emt 0:00:02]} Nb6 {[%emt 0:00:28]} 29. Bxb4 {[%emt 0:00:25]} Rfe8 {[%emt 0:00:09]} 30. Be4 {[%emt 0:00:07]} Qa7 {[%emt 0:00:13]} 31. c5 {[%emt 0:00:12]} Nd7 {[%emt 0:00:05]} 32. c6 {[%emt 0:00:06]} Nf6 {[%emt 0:00:02]} 33. Rc1 {[%emt 0:00:14]} Qb6 {[%emt 0:00:21]} 34. Bc5 {[%emt 0:00:19]} Qa5 {[%emt 0:00:08]} 35. Bd6 {[%emt 0:00:20]} Bf8 {[%emt 0:00:09]} 36. Bxf8 {[%emt 0:00:11]} Kxf8 {[%emt 0:00:01]} 37. Qc4 {[%emt 0:00:25]} Kg7 {[%emt 0:00:01]} 38. Red1 {[%emt 0:00:16]} Rc7 {[%emt 0:00:05]} 39. Rd6 {[%emt 0:00:14]} Rec8 {[%emt 0:00:04]} 40. g3 {[%emt 0:00:43]} Qa3 {[%emt 0:00:07]} 41. Rcd1 {[%emt 0:00:05]} Nxe4 {[%emt 0:00:04]} 42. Qxe4 {[%emt 0:00:02]} Qc3 {[%emt 0:00:16]} 43. f6+ {[%emt 0:00:08]} Kg8 {[%emt 0:00:02]} 44. Rd8+ {[%emt 0:00:02]} 1-0

[Event "European Women Rapid-ch 2023"]
[Site "Monaco"]
[Date "2024.01.13"]
[Round "5.9"]
[White "Agrest, Inna"]
[Black "Wagner, Dinara"]
[Result "0-1"]
[ECO "B96"]
[WhiteElo "2287"]
[BlackElo "2459"]
[Annotator "RC"]
[PlyCount "58"]
[EventDate "2023.12.19"]
[EventType "swiss"]
[EventCountry "MNC"]
[SourceTitle "playchess.com"]
[Source "ChessBase"]
[SourceQuality "1"]
[TimeControl "900+10"]

1. e4 {[%emt 0:00:02]} c5 {[%emt 0:00:49]} 2. Nf3 {[%emt 0:00:01]} d6 {[%emt 0:00:04]} 3. d4 {[%emt 0:00:02]} cxd4 {[%emt 0:00:01]} 4. Nxd4 {[%emt 0:00:01]} Nf6 {[%emt 0:00:02]} 5. Nc3 {[%emt 0:00:01]} a6 {[%emt 0:00:02]} 6. Bg5 {[%emt 0:00:01]} e6 {[%emt 0:00:02]} 7. f4 {[%emt 0:00:02]} Nbd7 {[%emt 0:00:02]} 8. Qf3 {[%emt 0:00:03]} h6 {[%emt 0:00:07]} 9. Bh4 {[%emt 0:00:04]} e5 {[%emt 0:00:08]} 10. Nb3 {[%emt 0:01:35]} exf4 {[%emt 0:01:07]} 11. Bxf6 {[%emt 0:00:45]} Nxf6 {[%emt 0:00:15]} 12. Qxf4 {[%emt 0:00:09]} Be7 {[%emt 0:00:26]} 13. Bd3 {[%emt 0:04:33]} Ng4 {[%emt 0:01:58]} 14. Nd5 {[%emt 0:02:07]} Bh4+ {[%emt 0:01:44]} 15. g3 {[%emt 0:00:27]} Bg5 {[%emt 0:00:01]} 16. Qf1 {[%emt 0:00:10]} Be6 {[%emt 0:02:32]} 17. h4 {[%emt 0:02:55]} Bxd5 {[%emt 0:00:17]} 18. exd5 {[%emt 0:00:03]} Be3 {[%emt 0:00:14]} 19. Qe2 {[%emt 0:01:21]} h5 {[%emt 0:00:34]} 20. Bf5 {[%emt 0:01:52]} O-O {[%emt 0:00:49]} 21. Bxg4 {[%emt 0:00:34]} hxg4 {[%emt 0:00:01]} 22. Qxg4 {[%emt 0:00:15]} Qf6 {[%emt 0:00:02]} 23. Rf1 {[%emt 0:00:31]} Qxb2 {[%emt 0:00:06]} 24. Rf3 {[%emt 0:00:06]} Rae8 {[%emt 0:00:27]} 25. Kf1 {[%emt 0:00:03]} Qxc2 {[%emt 0:00:20]} 26. Re1 {[%emt 0:00:14]} Bb6 {[%emt 0:00:46]} 27. Qb4 {[%emt 0:01:21]} Qh2 {[%emt 0:01:13]} 28. Nd4 {[%emt 0:00:16]} Qh1+ {[%emt 0:00:20]} 29. Kf2 {[%emt 0:00:02]} Bxd4+ {[%emt 0:00:04]} 0-1